Cogmind - Beta 16 @@@ ROGUE MODE // 2026.01.26 @ 20:40:23 Player: PE-P51_RE Result: Destroyed self with Subdweller Shrapnel Launcher Performance ------------- Evolutions (0) 0 Regions Visited (2) 400 Robots Destroyed (32) 160 Value Destroyed (985) 985 Prototype IDs (0) 0 Alien Tech Used (0) 0 Bonus (-20) -20 TOTAL SCORE: 1525 Bonus ------- Friendly Fire -20 Cogmind --------- Core Integrity 0/250 Matter 54/300 Energy 100/100 System Corruption 7% Temperature Cool (0) Movement Treading (400) Ox3 Location -10/Subcaves Parts ------- > --- POWER (1) -------- (None) > --- PROPULSION (2) --- Improved Treads > --- UTILITY (2) ------ Huge Storage Unit > --- WEAPON (2) ------- Subdweller Shrapnel Launcher > --- INVENTORY (25) --- Ion Engine Light Ion Engine Subdweller Power Source Light Treads Light Treads Light Treads Improved Treads Improved Treads Aluminum Leg Aluminum Leg Compact Wheel Hover Unit Disposable Heat Sink High-capacity Matter Pod (200) Subdweller Optics Scrap Shield Beam Cannon Particle Cannon Particle Cannon Particle Cannon Subdweller Beam Cannon Grenade Launcher Grenade Launcher Mining Claw Peak State ------------ > --- POWER ------------ Subdweller Power Source > --- PROPULSION ------- Improved Treads Improved Treads > --- UTILITY ---------- Huge Storage Unit Sensor Array > --- WEAPON ----------- Particle Cannon Subdweller Beam Cannon > --- INVENTORY -------- Ion Engine Ion Engine Light Ion Engine Light Treads Light Treads Light Treads Improved Treads Improved Treads Aluminum Leg Aluminum Leg Compact Wheel Compact Wheel Hover Unit Disposable Heat Sink High-capacity Matter Pod Subdweller Optics Beam Cannon Particle Cannon Particle Cannon Particle Cannon Grenade Launcher Grenade Launcher Grenade Launcher Mining Claw [Rating: 15] Favorites ----------- Power Light Ion Engine Engine Light Ion Engine Propulsion Improved Treads Treads Improved Treads Leg Aluminum Leg Wheel Compact Wheel Utility Huge Storage Unit Device Sensor Array Storage Huge Storage Unit Weapon Particle Cannon Energy Gun Medium Laser Energy Cannon Particle Cannon Launcher Grenade Launcher Slashing Weapon Mining Claw Build | -11 -10 -10 ------- Run | Yrd Mat Sub Slots Evolved . | . . . Power . | . . . Propulsion . | . . . Utility . | . . . Weapon . | . . . Parts Attached 21 | . 15 6 Power 3 | . 1 2 Engine 3 | . 1 2 Core . | . . . Reactor . | . . . Propulsion 6 | . 6 . Treads 4 | . 4 . Leg . | . . . Wheel 2 | . 2 . Hover . | . . . Flight . | . . . Utility 4 | . 3 1 Device 1 | . . 1 Storage 3 | . 3 . Processor . | . . . Hackware . | . . . Protection . | . . . Artifact . | . . . Weapon 8 | . 5 3 Energy Gun . | . . . Energy Cannon 4 | . 2 2 Ballistic Gun . | . . . Ballistic Cannon . | . . . Launcher 3 | . 2 1 Special Weapon . | . . . Impact Weapon . | . . . Slashing Weapon 1 | . 1 . Piercing Weapon . | . . . Special Melee Weapon . | . . . Unidentified Prototypes . | . . . Parts Lost 5 | . 1 4 Power 2 | . 1 1 Propulsion 1 | . . 1 Utility 1 | . . 1 Weapon 1 | . . 1 Highest Loss Streak 4 | . 1 4 To Critical Strikes . | . . . Average Backups 17 | . 13 23 Power 1 | . 1 2 Propulsion 7 | . 5 9 Utility 2 | . 1 3 Weapon 6 | . 5 7 Tool/Special . | . . . Unused Backups 17 | . 4 13 Power 2 | . 1 1 Propulsion 6 | . . 6 Utility 6 | . 3 3 Weapon 3 | . . 3 Tool/Special . | . . . Average Slot Usage (%) 95 | . 93 99 Engine 10 | . 8 13 Treads 24 | . 21 27 Leg 3 | . 5 . Device 5 | . . 13 Storage 21 | . 27 14 Energy Gun 1 | . 2 . Energy Cannon 18 | . 14 23 Launcher 5 | . 9 . Slashing Weapon 2 | . 1 3 Peak Build Rating 15 | . 12 15 Average Rating 11 | . 9 14 On Entrance 8 | 6 6 12 Avg Prop Armor Cover (%) 9 | . 9 . Naked Turns . | . . . Heaviest Build 98 | 12 95 98 Greatest Support 46 | 20 46 46 Greatest Overweight (x) 5 | . 5 2 Average Overweight (x) 1 | . 1 1 Largest Inventory Capacity 25 | . 25 25 Average Capacity 23 | . 22 25 Most Carried 25 | . 20 25 Average Carried 17 | . 13 24 Final Capacity 25 | 8 25 25 Final Carried 25 | 6 20 25 Class Distribution -------------------- 100% | Mutant Dominant Class ---------------- Mutant | -10/Materials Mutant | -10/Subcaves Resources | -11 -10 -10 ----------- Run | Yrd Mat Sub Matter Collected 851 | 200 387 264 Remotely . | . . . Salvage Created 796 | . 340 456 Parts 62 | . 34 28 Haulers Intercepted 1 | . 1 . Recyclers Shooed . | . . . Parts Field Recycled . | . . . Retrieved Matter . | . . . Parts Self-Destructed . | . . . Prevented . | . . . Parts Restored . | . . . Kills | -11 -10 -10 ------- Run | Yrd Mat Sub Combat Hostiles Destroyed 27 | . 13 14 Melee 1 | . 1 . Cannons 5 | . 2 3 AOE 20 | . 10 10 Classes Destroyed 7 | . 5 2 Worker 1 | . 1 . Hauler 1 | . 1 . Watcher 3 | . 3 . Swarmer 6 | . 6 . Grunt 7 | . 7 . Artisan 1 | . . 1 Subdweller 14 | . . 14 Best Kill Streak 9 | . 4 9 Combat Bots Only 9 | . 3 9 Max Kills in Single Turn 4 | . 3 4 Gunslinging . | . . . Exploded 4 | . 3 4 Melee 1 | . 1 . Uniques/NPCs Destroyed . | . . . Combat | -11 -10 -10 -------- Run | Yrd Mat Sub Hostile Shots Fired 80 | . 33 47 Missed 21 | . 10 11 Hits 59 | . 23 36 Projectile 59 | . 23 36 Critical Strikes 1 | . . 1 Damage Taken 1140 | . 326 814 Core 266 | . 60 206 Absorbed by Shields . | . . . Core Remaining (%) 100 | 100 . . Volleys Fired 68 | . 28 40 Largest 2 | . 2 2 Hottest 148 | . 136 148 Shots Fired 110 | . 39 71 Gun 6 | . 6 . Cannon 75 | . 17 58 Launcher 29 | . 16 13 Special . | . . . Kinetic 12 | . . 12 Thermal 81 | . 23 58 Explosive 17 | . 16 1 Electromagnetic . | . . . Robot Hit Streak 13 | . 6 13 Robot Miss Streak 2 | . 2 2 Penetration Max . | . . . Secondary Targets . | . . . Shots Hit Robots 68 | . 20 48 Core Hits 50 | . 23 27 Critical Kills 1 | . . 1 Critical Parts Destroyed . | . . . Critical Strikes 1 | . . 1 Meltdown 1 | . . 1 Melee Attacks 16 | . 5 11 Impact . | . . . Slashing 16 | . 5 11 Piercing . | . . . Sneak Attacks 6 | . 2 4 Combat Hostiles . | . . . Follow-up Attacks . | . . . Damage Inflicted 3382 | . 1034 2348 Guns 51 | . 51 . Cannons 864 | . 208 656 Explosions 2262 | . 710 1552 Melee 184 | . 44 140 Ramming 21 | . 21 . Kinetic 1454 | . . 1454 Thermal 1011 | . 355 656 Explosive 712 | . 614 98 Electromagnetic . | . . . Impact . | . . . Slashing 184 | . 44 140 Piercing . | . . . Highest Corruption 7 | . 7 7 Average Corruption 6 | . 6 7 Corruption Purged . | . . . Corruption Blocked . | . . . Effects 89 | . 49 40 Message Errors 14 | . 9 5 Matter Fused 23 | . 10 13 Heat Flow Errors 10 | . 8 2 Energy Discharges 18 | . 7 11 Data Loss (minor) 11 | . 8 3 Data Loss (major) 6 | . 4 2 Misfires 5 | . 1 4 Alerts 1 | . 1 . Weapon Failures 1 | . 1 . Overload Shots . | . . . Overflow Damage 116 | . 84 32 Projectiles 11 | . 11 . Explosions 69 | . 69 . Melee 36 | . 4 32 Knockbacks 1 | . 1 . Impact 1 | . 1 . Kinetic . | . . . Secondary . | . . . Self-Inflicted Damage 114 | . 87 27 Shots 7 | . 5 2 Rammed 4 | . 4 . Targets Rammed 5 | . 5 . Kicked . | . . . Crushed 1 | . 1 . Highest Temperature 243 | . 243 215 Average Temperature 71 | . 87 51 Received Heat Transfer 219 | . 105 114 Siege Activations . | . . . Martial Activations . | . . . Shielding Activations . | . . . Robots Disrupted . | . . . Combat Hostiles . | . . . Robots Corrupted . | . . . Combat Hostiles . | . . . Parts Fried . | . . . Impact Corruptions . | . . . Robots Melted 1 | . . 1 Combat Hostiles 1 | . . 1 Parts Melted 1 | . 1 . Heat Transferred 1728 | . 618 1110 Parts Sabotaged . | . . . Parts Stolen . | . . . Parts Stripped . | . . . Power Chain Reactions . | . . . Alert | -11 -10 -10 ------- Run | Yrd Mat Sub Maximum Alert Level 1 | . 1 . Low Security (%) 48 | . 48 . Level 1 51 | . 51 . Level 2 . | . . . Level 3 . | . . . Level 4 . | . . . Level 5 . | . . . High Security . | . . . Max Security . | . . . Peak Influence 322 | . 322 . Initial . | . . . Average 164 | . 164 . Influence Increases 600 | . 600 . Destroy 0b10 Robot/C 260 | . 260 . Destroy 0b10 Robot/NC 25 | . 25 . Destroy Leader 68 | . 68 . Successful Hack 17 | . 17 . Disable Machine 75 | . 75 . Destroy Structure 110 | . 110 . Lose Combat Pursuer 45 | . 45 . Influence Decreases 600 | . 428 172 Entered New Map 84 | . . 84 Time Decay 506 | . 418 88 Lost Part 10 | . 10 . Squads Dispatched 2 | . 2 . Investigation 1 | . 1 . Extermination . | . . . Reinforcement 1 | . 1 . Assault . | . . . Garrison . | . . . Intercept . | . . . Searches Triggered . | . . . Construction Impeded . | . . . Haulers Reinforced . | . . . Active Scanning Responses . | . . . Cargo Convoy Interrupts . | . . . Stealth | -11 -10 -10 --------- Run | Yrd Mat Sub Distress Signals 3 | . 3 . Communications Jammed . | . . . Distress Signals . | . . . Times Spotted 36 | . 20 16 Peak Tracking Total 7 | . 6 7 Tactical Retreats 2 | . 2 . Traps | -11 -10 -10 ------- Run | Yrd Mat Sub Traps Triggered 6 | . 6 . Indirectly . | . . . Trap Hack Attempts . | . . . Triggered . | . . . Disarmed . | . . . Reprogrammed . | . . . Reused . | . . . Traps Extracted . | . . . Installed . | . . . Triggered . | . . . Machines | -11 -10 -10 ---------- Run | Yrd Mat Sub Machines Disabled 5 | . 5 . Max in Single Turn 2 | . 2 . Machines Repaired . | . . . Machines Dismantled . | . . . Machines Sabotaged . | . . . Overloaded Fab Kills . | . . . Hacking | -11 -10 -10 --------- Run | Yrd Mat Sub Machines Accessed 8 | . 8 . Terminals 7 | . 7 . Fabricators . | . . . Repair Stations . | . . . Recycling Units 1 | . 1 . Scanalyzers . | . . . Garrison Access . | . . . Total Hacks 16 | . 16 . Successful 10 | . 10 . Failed 6 | . 6 . Catastrophic . | . . . Database Lockouts . | . . . Manual 11 | . 11 . Terminals 12 | . 12 . Fabricators . | . . . Repair Stations . | . . . Recycling Units 4 | . 4 . Scanalyzers . | . . . Garrison Access . | . . . Terminal Hacks 1 | . 1 . Hauler Manifests 1 | . 1 . Fabricator Hacks . | . . . Repair Station Hacks . | . . . Recycling Unit Hacks 2 | . 2 . Process 1 | . 1 . Retrieve Matter 1 | . 1 . Scanalyzer . | . . . Garrison Access Hacks . | . . . Unauthorized Hacks 7 | . 7 . Terminals 7 | . 7 . Botnet 7 | . 7 . Fabricators . | . . . Repair Stations . | . . . Recycling Units . | . . . Scanalyzers . | . . . Garrison Access . | . . . Data Cores Recovered . | . . . Used . | . . . Hacking Detections 3 | . 3 . Full Trace Events . | . . . Feedback Events . | . . . Feedback Blocked . | . . . Robot Schematics Acquired . | . . . Robots Built . | . . . Authchips . | . . . Time . | . . . Total Robot Build Rating . | . . . Part Schematics Acquired . | . . . Parts Built . | . . . Authchips . | . . . Time . | . . . Total Part Build Rating . | . . . Part Studies Acquired . | . . . Parts Repaired . | . . . Time . | . . . Parts Recycled . | . . . Recycled Matter 267 | . 267 . Retrieved Matter 375 | . 375 . Retrieved Components . | . . . Parts Scanalyzed . | . . . Part Schematics Acquired . | . . . Parts Damaged . | . . . Bothacking | -11 -10 -10 ------------ Run | Yrd Mat Sub Used RIF Installer . | . . . Robots Hacked . | . . . Non-combat . | . . . Combat . | . . . Robot Hacks Applied . | . . . Relay Couplers Released . | . . . Fabnet Peak Effective % . | . . . Robots Rewired . | . . . Allies Hacked . | . . . Hacks Repelled . | . . . Allies | -11 -10 -10 -------- Run | Yrd Mat Sub Total Allies . | . . . Largest Group . | . . . Highest-Rated Group . | . . . Highest-Rated Ally . | . . . Total Orders . | . . . Ally Attacks . | . . . Total Damage . | . . . Kills . | . . . Allies Corrupted . | . . . Allies Melted . | . . . Intel | -11 -10 -10 ------- Run | Yrd Mat Sub Active Infowar (turns) 1498 | . . 1498 Sensors 1498 | . . 1498 Robot Analysis Total . | . . . Derelict Logs Recovered . | . . . Drone Launches . | . . . Drone Recoveries . | . . . Exploration | -11 -10 -10 ------------- Run | Yrd Mat Sub Turns Passed 3650 | . 2142 1508 Spaces Moved 1148 | 1 742 405 Core . | . . . Treads 885 | . 480 405 Legs 222 | 1 221 . Wheels 41 | . 41 . Hover . | . . . Flight . | . . . Fastest Speed 120 | 120 120 240 Average Speed 281 | 120 265 311 Slowest Speed 400 | 120 400 320 Overloaded Moves . | . . . Propulsion Burnouts . | . . . Robots Hopped . | . . . Potential Cave-ins . | . . . Cave-ins Triggered . | . . . Exploration Rate (%) 43 | 2 98 30 Regions Visited 2 Branch Regions 1 Pre-discovered Areas 1 | . . 1 Known Exits Taken . | . . . Unknown Exits Taken 2 | 1 1 . Scrap Searched 5 | . . 5 Spaces Dug 15 | . 15 . Terrain Destroyed 233 | . 109 124 Melee 2 | . 2 . Projectile 2 | . . 2 AOE 229 | . 107 122 Terrain Rammed . | . . . Walls Destroyed . | . . . Machines Disabled . | . . . Actions | -11 -10 -10 --------- Run | Yrd Mat Sub Total 1415 | . 851 564 Wait 123 | . 31 92 Move 1146 | . 741 405 Hop . | . . . Pick Up 18 | . 13 5 Fast Attach 7 | . 7 . Attach . | . . . Detach 2 | . 2 . Swap 18 | . 10 8 Drop 12 | . 9 3 Fire 68 | . 28 40 Melee 16 | . 5 11 Ram . | . . . Kick . | . . . Crush 5 | . 5 . Escape Stasis . | . . . Rewire . | . . . Trap . | . . . Miscellaneous . | . . . Route ------- -11/Scrapyard -10/Materials (discovered 5 exits: [*Mat x3] / [*Min] / [*Sub]) -10/Subcaves History --------- Turn | Location | Event 1 | -11/Scrapyard | Discovered new exit (range 0) 1 | -11/Scrapyard | Entered Materials 313 | -10/Materials | Build established: Mutant 448 | -10/Materials | Discovered new exit (range 9) 450 | -10/Materials | Discovered new exit (range 14) 657 | -10/Materials | Discovered new exit (range 13) 1748 | -10/Materials | Discovered new exit (range 8) 2127 | -10/Materials | Discovered new exit (range 6) 2143 | -10/Materials | Entered Subcaves 2144 | -10/Subcaves | Approached by a straggling Scientist 2145 | -10/Subcaves | Ambushed by Subdwellers from Twisted Machinery 2370 | -10/Subcaves | Learned location of Zion (-6) 2370 | -10/Subcaves | Met a Zionite searching for "candidates" 3305 | -10/Subcaves | A swath of the cavern ceiling suddenly collapsed 3617 | -10/Subcaves | Core integrity fell below 50% 3631 | -10/Subcaves | Ambushed by Subdweller buried in earth 3635 | -10/Subcaves | Ambushed by Subdweller buried in earth 3637 | -10/Subcaves | Ambushed by Subdweller buried in earth 3648 | -10/Subcaves | Core integrity fell below 20% 3651 | -10/Subcaves | Destroyed self with Subdweller Shrapnel Launcher Last Messages --------------- 03632_ I8-B0O(R): "ARGHSUB!" 03633_ HR-YGV(R) destroyed. 03634_ KN-KFQ(R): "SLEEPOVER!" 03636_ EL-KP9(R): "FREEEEDUMB!" 03637_ AR-0L8(R): "SLEEPOVER!" 03638_ J0-A7O(R): "ARGHSUB!" 03638_ V8-UFM(R): "ARGHSUB!" 03639_ The unstable cave ceiling collapses. 03639_ AR-0L8(R) destroyed. 03639_ KN-KFQ(R) destroyed. 03639_ V8-UFM(R) destroyed. 03639_ EL-KP9(R) destroyed. 03640_ SR-F08(R): "NOSTUCKSUB!" 03641_ Sensor Array destroyed. 03643_ System corrupted: Matter fused (-9). 03646_ E3-3ZG(R): "ARGHSUB!" 03646_ Imp. Treads destroyed. 03647_ J0-A7O(R) destroyed. 03649_ Destroyed Scrap Shield. 03649_ E3-3ZG(R) destroyed. Map ----- +----------------------------------------------------+ | #### "#""#####??????## #????# """#????????????? | | ##""""""##"#"#?????#######????#""" " #???????????? | | ####""##"#""#???#### ##???????#"""""""???????????? | | ???#####"#"###### ## ###????? """""#???????????? | | ?????#""""""" " # #?????? #????????????????? | | ?????##""##"###" #???????#?????????????????? | | ??????#####"#?## ####??????????????????????? | | ????????#####??# ## #####??????????????????? | | ???????????????## " " ?????????????????? | | ????????????????#### """ " ????????????????? | | ???????????????????## """" "???????????????? | | ?????????????????#### "" ""????????????????? | | ?????????????????# """#?????????????????? | | ?????????###?????# ####?????????????????? | | ?????????# ##??### ##????????????????????? | | ?????????# #### # #?????????????????????? | | ????????## #?????????????????????? | | ???????## ## #?????????????????????? | | ##??#### # # ###### #????????????????????? | | %#### ########?????## #???????????????????? | | ="# #"& #??????????????# #???????????????????? | | [%#]=%&&!"#????????????#### #???????????????????? | | "[#=#&*& ##???????????## #####???????????????????? | | #&%"## * ############# ##?????????????????????? | | ####### ### ;;; ????????? | | ??????## ## @ ????????? | | ???????## [ ???????? | | ????????### ## c [ R ????????? | | ??????????# ##### ### R %! ?????????? | | ??????????##### #??###?? && ?????????? | | ??????????????#####??????? ??????????? | | ?????????????????????????? ??????????? | | ?????????????????????????? ??????????? | | ?????????????????????????? ???????????? | | ???????????????????????????### ???????????? | | ??????????????????????????????##### #????????????? | | ????????????????????????????????????#????????????? | | ?????????????????????????????????????????????????? | | ?????????????????????????????????????????????????? | | ?????????????????????????????????????????????????? | | ?????????????????????????????????????????????????? | | ?????????????????????????????????????????????????? | | ?????????????????????????????????????????????????? | | ?????????????????????????????????????????????????? | | ?????????????????????????????????????????????????? | | | | | | | | | | | +----------------------------------------------------+ Best States ------------- Heat Dissipation 25 Energy Generation 15 Energy Capacity 250 Matter Stores 500 Matter Capacity 500 Sight Range 16 Robot Scan Range 14 Terrain Scan Density 10 Evasion (%) 55 Recoil Reduction 2 Item Schematics ----------------- None Robot Schematics ------------------ None Fabricated ------------ Nothing Repaired ---------- Nothing Studied --------- None Alien Tech Used ----------------- None Achievements -------------- None Challenges ------------ None Game ------ Seed HardlightRainbowProjector Manual? 0 Play Time 00:14:24 Cumulative 335.7 hours Start 2026.01.26 @ 20:30:01 End 2026.01.26 @ 20:40:23 Sessions 1 Manual Loads 0 Difficulty Rogue Special Mode None Game No. 413 Rogue 411 Adventurer 2 Explorer 0 Win Type - Total 4 Types 2/0/0/1/1/0/0/0/0/0 Lore% 81 Gallery% 71 Achievement% 62 Wizard Run 0 Options --------- Layout 0 ASCII 0 Keyboard 0 Movement Numpad Keybinds 0 Fullscreen 2 Font 24/Smallcaps Map View 76x50 Zoom Use 0% Tactical HUD 1 Map Filters NONE Filters NONE Steam 1 RUN: 3be77189-a77d-43e6-a734-ba47cc07f408